fUSD/lending_fUSD_20240515
["ID","MTS","AMOUNT","RATE_DAILY","PERIOD"]
[327081512,1715795438237,-228.829077,0.0001191,2]
[327081514,1715795438246,-549.075535,0.0001191,2]
[327081516,1715795438255,-228.829077,0.0001191,2]
[327081518,1715795438264,-306.26,0.00011918,2]
[327081520,1715795438274,-200.0,0.00011926,2]
[327081522,1715795438283,-161.599,0.00011961,2]
[327081524,1715795438292,-155.75,0.00011961,2]
[327081526,1715795438301,-153.449,0.00011961,2]
[327081528,1715795438310,-164.809,0.00011961,2]
[327081530,1715795438319,-219.0,0.00011961,2]
[327081532,1715795438328,-153.871,0.00011961,2]
[327081534,1715795438337,-150.0,0.00011961,2]
[327081536,1715795438346,-294.3,0.00011961,2]
[327081538,1715795438356,-150.0,0.00011961,2]
[327081540,1715795438365,-500.0,0.00011965,2]
[327081542,1715795438374,-500.0,0.00011965,2]
[327081544,1715795438383,-1648.77,0.00011965,2]
[327081546,1715795438393,-500.0,0.00011965,2]
[327081548,1715795438402,-1693.2,0.00011965,2]
[327081550,1715795438411,-972.0,0.00011966,2]
[327081552,1715795438421,-2157.0,0.00011966,2]
[327081554,1715795438430,-1398.0,0.00011966,2]
[327081556,1715795438439,-2157.0,0.00011966,2]
[327081558,1715795438449,-1261.0,0.00011966,2]
[327081560,1715795438458,-1227.0,0.00011966,2]
[327081562,1715795438467,-1014.203,0.00011966,2]
[327081564,1715795438478,-439.0,0.00011966,2]
[327081566,1715795438487,-422.0,0.00011966,2]
[327081567,1715795438496,-612.0,0.00011966,2]
[327081568,1715795438505,-189.033,0.00011966,2]
[327081569,1715795438515,-809.0,0.00011966,2]
[327081570,1715795438524,-1647.0,0.00011966,2]
[327081571,1715795438533,-151.677,0.00011966,2]
[327081572,1715795438542,-2412.0,0.00011966,2]
[327081573,1715795438552,-151.013,0.00011966,2]
[327081574,1715795438561,-215.0,0.00011966,2]
[327081575,1715795438570,-1138.0,0.00011966,2]
[327081576,1715795438580,-444.0,0.00011966,2]
[327081577,1715795438589,-3156.0,0.00011966,2]
[327081579,1715795438599,-288.0,0.00011966,2]
[327081581,1715795438608,-5910.0,0.00011966,2]
[327081583,1715795438617,-37836.0,0.00011966,2]
[327081585,1715795438626,-151.025,0.00011966,2]
[327081587,1715795438636,-253.776587,0.00011966,2]
[327081589,1715795438650,-253.776587,0.00011966,2]
[327081591,1715795438660,-211.531233,0.00011966,2]
[327081593,1715795438669,-211.531233,0.00011966,2]
[327081594,1715795438678,-232.671246,0.00011966,2]
[327081595,1715795438690,-232.671246,0.00011966,2]
[327081596,1715795438699,-151.0,0.00011966,2]
[327081597,1715795438709,-225.0771,0.00011966,2]
[327081598,1715795438720,-151.0,0.00011966,2]
[327081599,1715795438731,-185.689765,0.00011966,2]
[327081600,1715795438741,-185.689765,0.00011966,2]
[327081601,1715795438750,-340.630876,0.00011966,2]
[327081602,1715795438761,-340.630876,0.00011966,2]
[327081603,1715795438771,-151.0,0.00011966,2]
[327081604,1715795438780,-289.889808,0.00011966,2]
[327081605,1715795438789,-695.005535,0.00011966,2]
[327081606,1715795438799,-289.889808,0.00011966,2]
[327081607,1715795438808,-258.53191,0.00011966,2]
[327081608,1715795438818,-258.53191,0.00011966,2]
[327081609,1715795438827,-1727.802977,0.00011966,2]
[327081610,1715795438836,-240.797916,0.00011966,2]
[327081611,1715795438845,-1727.802977,0.00011966,2]
[327081612,1715795438854,-240.797916,0.00011966,2]
[327081613,1715795438863,-163.267617,0.00011966,2]
[327081614,1715795438873,-163.267617,0.00011966,2]
[327081615,1715795438882,-156.234681,0.00011966,2]
[327081616,1715795438891,-156.234681,0.00011966,2]
[327081617,1715795438901,-550.601069,0.00011966,2]
[327081618,1715795438910,-550.601069,0.00011966,2]
[327081619,1715795438919,-2929.978951,0.00011966,2]
[327081620,1715795438928,-2929.978951,0.00011966,2]
[327081621,1715795438938,-765.450737,0.00011966,2]
[327081622,1715795438947,-765.450737,0.00011966,2]
[327081623,1715795438956,-151.0,0.00011966,2]
[327081624,1715795438966,-1080.863667,0.00011966,2]
[327081625,1715795438975,-1080.863673,0.00011966,2]
[327081626,1715795438985,-549.075535,0.00011966,2]
[327081627,1715795438995,-228.829077,0.00011966,2]
[327081628,1715795439004,-549.075528,0.00011966,2]
[327081629,1715795439014,-228.829069,0.00011966,2]
[327081630,1715795439023,-500.0,0.00011969,2]
[327081631,1715795439033,-500.0,0.00011969,2]
[327081632,1715795439043,-500.0,0.00011969,2]
[327081633,1715795439053,-500.0,0.00011969,2]
[327081634,1715795439063,-500.0,0.00011969,2]
[327081635,1715795439073,-500.0,0.00011969,2]
[327081636,1715795439083,-500.0,0.00011969,2]
[327081637,1715795439092,-500.0,0.00011969,2]
[327081638,1715795439102,-500.0,0.00011969,2]
[327081639,1715795439111,-500.0,0.00011969,2]
[327081640,1715795439121,-20000.0,0.0001197,2]
[327081641,1715795439130,-20000.0,0.0001197,2]
[327081642,1715795439140,-20000.0,0.0001197,2]
[327081643,1715795439149,-9739.94537602,0.0001197,2]
[327081644,1715795439159,-151.0,0.0001197,2]
[327081645,1715795439168,-151.0,0.0001197,2]
[327081646,1715795439178,-151.0,0.0001197,2]
[327081647,1715795439187,-151.0,0.0001197,2]
[327081648,1715795439197,-151.0,0.0001197,2]
[327081649,1715795439206,-151.0,0.0001197,2]
[327081650,1715795439216,-151.0,0.0001197,2]
[327081651,1715795439228,-151.0,0.0001197,2]
[327081652,1715795439237,-253.776587,0.0001197,2]
[327081653,1715795439247,-253.776587,0.0001197,2]
[327081654,1715795439257,-253.776587,0.0001197,2]
[327081655,1715795439267,-253.776587,0.0001197,2]
[327081656,1715795439276,-211.531233,0.0001197,2]
[327081657,1715795439285,-211.531233,0.0001197,2]
[327081658,1715795439294,-211.531233,0.0001197,2]
[327081659,1715795439303,-211.531233,0.0001197,2]
[327081661,1715795439313,-232.671246,0.0001197,2]
[327081662,1715795439323,-232.671246,0.0001197,2]
[327081663,1715795439332,-232.671246,0.0001197,2]
[327081664,1715795439343,-232.671246,0.0001197,2]
[327081665,1715795439353,-151.0,0.0001197,2]
[327081666,1715795439363,-151.0,0.0001197,2]
[327081667,1715795439372,-189.287157,0.0001197,2]
[327081668,1715795439382,-185.689765,0.0001197,2]
[327081669,1715795439391,-185.689765,0.0001197,2]
[327081670,1715795439402,-185.689765,0.0001197,2]
[327081671,1715795439411,-185.689765,0.0001197,2]
[327081672,1715795439421,-340.630876,0.0001197,2]
[327081673,1715795439430,-340.630876,0.0001197,2]
[327081674,1715795439439,-340.630876,0.0001197,2]
[327081675,1715795439449,-340.630876,0.0001197,2]
[327081676,1715795439459,-151.0,0.0001197,2]
[327081677,1715795439468,-171.746872,0.0001197,2]
[327081678,1715795439479,-289.889808,0.0001197,2]
[327081679,1715795439488,-289.889808,0.0001197,2]
[327081680,1715795439497,-695.005535,0.0001197,2]
[327081682,1715795439507,-695.005535,0.0001197,2]
[327081683,1715795439516,-289.889808,0.0001197,2]
[327081684,1715795439526,-289.889808,0.0001197,2]
[327081685,1715795439535,-258.53191,0.0001197,2]
[327081686,1715795439544,-258.53191,0.0001197,2]
[327081687,1715795439554,-258.53191,0.0001197,2]
[327081688,1715795439563,-258.53191,0.0001197,2]
[327081689,1715795439574,-1727.802977,0.0001197,2]
[327081690,1715795439583,-1727.802977,0.0001197,2]
[327081691,1715795439593,-240.797916,0.0001197,2]
[327081692,1715795439602,-240.797916,0.0001197,2]
[327081693,1715795439611,-1727.802977,0.0001197,2]
[327081694,1715795439620,-1727.802977,0.0001197,2]
[327081695,1715795439630,-240.797916,0.0001197,2]
[327081696,1715795439640,-240.797916,0.0001197,2]
[327081697,1715795439654,-163.267617,0.0001197,2]
[327081698,1715795439663,-163.267617,0.0001197,2]
[327081699,1715795439673,-163.267617,0.0001197,2]
[327081700,1715795439685,-163.26762,0.0001197,2]
[327081701,1715795439695,-156.234681,0.0001197,2]
[327081702,1715795439705,-156.234681,0.0001197,2]
[327081703,1715795439715,-156.234681,0.0001197,2]
[327081704,1715795439727,-156.234685,0.0001197,2]
[327081705,1715795439737,-550.601069,0.0001197,2]
[327081706,1715795439747,-550.601069,0.0001197,2]
[327081707,1715795439757,-550.601069,0.0001197,2]
[327081708,1715795439767,-550.601076,0.0001197,2]
[327081709,1715795439777,-2929.978951,0.0001197,2]
[327081710,1715795439786,-2929.978951,0.0001197,2]
[327081711,1715795439796,-2929.978951,0.0001197,2]
[327081712,1715795439806,-2929.97895,0.0001197,2]
[327081713,1715795439815,-765.450737,0.0001197,2]
[327081714,1715795439825,-765.450739,0.0001197,2]
[327081715,1715795439834,-500.0,0.0001197,2]
[327081716,1715795439994,-500.0,0.0001197,2]
[327081717,1715795440004,-500.0,0.0001197,2]
[327081718,1715795440013,-500.0,0.0001197,2]
[327081719,1715795440023,-500.0,0.0001197,2]
[327081720,1715795440033,-500.0,0.0001197,2]
[327081721,1715795440042,-701.44116951,0.0001197,2]
[327081722,1715795440052,-700.0,0.0001197,2]
[327081723,1715795440061,-700.0,0.0001197,2]
[327081724,1715795440071,-700.0,0.0001197,2]
[327081725,1715795440081,-700.0,0.0001197,2]
[327081726,1715795440091,-1200.0,0.0001197,2]
[327081727,1715795440100,-151.0,0.00011972,2]
[327081728,1715795440110,-151.0,0.00011972,2]
[327081729,1715795440120,-151.0,0.00011972,2]
[327081730,1715795440130,-253.776587,0.00011972,2]
[327081731,1715795440140,-253.776593,0.00011972,2]
[327081732,1715795440149,-211.531233,0.00011972,2]
[327081733,1715795440159,-211.53123083,0.00011972,2]
[327081734,1715795440169,-232.671246,0.00011972,2]
[327081735,1715795440179,-232.671243,0.00011972,2]
[327081736,1715795440188,-151.0,0.00011972,2]
[327081737,1715795440197,-185.689765,0.00011972,2]
[327081738,1715795440206,-185.68976,0.00011972,2]
[327081740,1715795440216,-19023.9487549,0.00011972,2]
[327081741,1715795440225,-340.630876,0.00011972,2]
[327081742,1715795440236,-340.630869,0.00011972,2]
[327081743,1715795440245,-289.889808,0.00011972,2]
[327081744,1715795440254,-695.005526,0.00011972,2]
[327081745,1715795440263,-289.889801,0.00011972,2]
[327081746,1715795440273,-258.53191,0.00011972,2]
[327081747,1715795440282,-258.531918,0.00011972,2]
[327081748,1715795440292,-1727.802977,0.00011972,2]
[327081749,1715795440302,-240.797916,0.00011972,2]
[327081750,1715795440312,-1727.802981,0.00011972,2]
[327081751,1715795440321,-240.797924,0.00011972,2]
[327081752,1715795440331,-42079.6495046,0.00011972,2]
[327081753,1715795440340,-500.0,0.00011976,2]
[327081754,1715795440349,-344.53181775,0.00011976,2]
[327081755,1715795440359,-500.0,0.00011976,2]
[327081756,1715795440369,-2515.69,0.00011976,2]
[327081757,1715795440378,-834.77,0.00011976,2]
[327081758,1715795440387,-500.0,0.00011976,2]
[327081759,1715795440397,-500.0,0.00011976,2]
[327081760,1715795440406,-500.0,0.00011976,2]
[327081761,1715795440416,-187.40993618,0.00011976,2]
[327081762,1715795440425,-3007.03887667,0.00011978,2]
[327081763,1715795440435,-500.0,0.00011979,2]
[327081764,1715795440445,-500.0,0.00011979,2]
[327081765,1715795440454,-500.0,0.00011979,2]
[327081766,1715795440464,-500.0,0.00011979,2]
[327081767,1715795440474,-500.0,0.00011979,2]
[327081768,1715795440485,-500.0,0.00011979,2]
[327081769,1715795440495,-500.0,0.00011979,2]
[327081770,1715795440504,-500.0,0.00011979,2]
[327081771,1715795440514,-500.0,0.00011979,2]
[327081772,1715795440523,-500.0,0.00011979,2]
[327081773,1715795440532,-500.0,0.00011979,2]
[327081774,1715795440541,-500.0,0.00011979,2]
[327081775,1715795440551,-500.0,0.00011979,2]
[327081776,1715795440560,-1648.77,0.00011979,2]
[327081777,1715795440571,-1648.77,0.00011979,2]
[327081778,1715795440581,-500.0,0.00011979,2]
[327081779,1715795440590,-468.14103847,0.00011979,2]
[327081780,1715795440599,-1693.2,0.00011979,2]
[327081781,1715795440608,-1693.2,0.00011979,2]
[327081782,1715795440618,-500.0,0.00011979,2]
[327081783,1715795440627,-544.0,0.0001198,2]
[327081784,1715795440638,-9482.52202552,0.0001198,2]
[327081785,1715795440652,-151.0,0.0001198,2]
[327081786,1715795440661,-500.0,0.0001198,2]
[327081787,1715795440671,-151.0,0.0001198,2]
[327081788,1715795440680,-151.0,0.0001198,2]
[327081789,1715795440691,-151.0,0.0001198,2]
[327081790,1715795440700,-151.0,0.0001198,2]
[327081791,1715795440709,-151.0,0.0001198,2]
[327081792,1715795440719,-151.0,0.0001198,2]
[327081793,1715795440732,-151.0,0.0001198,2]
[327081794,1715795440742,-18604.5462876,0.0001198,2]
[327081795,1715795440752,-18185.1438204,0.0001198,2]
[327081796,1715795440762,-41275.2673632,0.0001198,2]
[327081797,1715795440772,-4790.28695822,0.0001198,2]
[327081798,1715795440970,-4666.6,0.0001198,2]
[327081799,1715795440983,-31013.99826358,0.0001198,2]
[327081800,1715795440992,-500.0,0.0001198,2]
[327081801,1715795441001,-2515.69,0.0001198,2]
[327081802,1715795441010,-834.77,0.0001198,2]
[327081803,1715795441019,-500.0,0.0001198,2]
[327081804,1715795441029,-500.0,0.0001198,2]
[327081805,1715795441039,-500.0,0.0001198,2]
[327081806,1715795441049,-17765.7413532,0.00011982,2]
[327081807,1715795441058,-17346.3388859,0.00011982,2]
[327081808,1715795441067,-39666.5030803,0.00011982,2]
[327081809,1715795441076,-38862.1209389,0.00011982,2]
[327081810,1715795441086,-500.0,0.00011985,2]
[327081811,1715795441095,-500.0,0.00011985,2]
[327081812,1715795441104,-223.62017295,0.00011985,2]
[327081813,1715795441113,-500.0,0.00011985,2]
[327081814,1715795441123,-236.10440833,0.00011986,2]
[327081815,1715795441132,-2005.85931335,0.00011986,2]
[327081816,1715795441142,-699.41070565,0.00011986,2]
[327081817,1715795441151,-273.96492432,0.00011986,2]
[327081818,1715795441162,-776.05395473,0.00011986,2]
[327081819,1715795441171,-377.57527955,0.00011986,2]
[327081820,1715795441180,-155.41401368,0.00011986,2]
[327081821,1715795441189,-289.90594162,0.00011986,2]
[327081822,1715795441199,-326.36335566,0.00011986,2]
[327081823,1715795441208,-155.0,0.00011986,2]
[327081824,1715795441218,-177.68872852,0.00011986,2]
[327081825,1715795441227,-4737.626702,0.00011986,2]
[327081826,1715795441237,-155.33470156,0.00011986,2]
[327081827,1715795441246,-155.22640047,0.00011986,2]
[327081828,1715795441256,-186.12897839,0.00011986,2]
[327081829,1715795441265,-293.84601129,0.00011986,2]
[327081830,1715795441274,-326.51563459,0.00011986,2]
[327081831,1715795441283,-788.48029707,0.00011986,2]
[327081832,1715795441292,-167.65434555,0.00011986,2]
[327081833,1715795441302,-305.64014606,0.00011986,2]
[327081834,1715795441311,-155.0,0.00011986,2]
[327081835,1715795441320,-3280.62102371,0.00011986,2]
[327081836,1715795441330,-160.0001,0.00011986,2]
[327081837,1715795441340,-237.03062149,0.00011986,2]
[327081838,1715795441349,-535.07006962,0.00011986,2]
[327081839,1715795441358,-2101.80773139,0.00011986,2]
[327081840,1715795441367,-684.85937217,0.00011986,2]
[327081841,1715795441376,-157.98514558,0.00011986,2]
[327081842,1715795441386,-208.30272338,0.00011986,2]
[327081843,1715795441395,-343.99922863,0.00011986,2]
[327081844,1715795441405,-200.69504957,0.00011986,2]
[327081845,1715795441413,-706.56200578,0.00011986,2]
[327081846,1715795441423,-155.0,0.00011986,2]
[327081847,1715795441432,-289.95070223,0.00011986,2]
[327081848,1715795441442,-157.47503932,0.00011986,2]
[327081849,1715795441451,-500.0,0.00011986,2]
[327081850,1715795441461,-500.0,0.00011986,2]
[327081851,1715795441470,-500.0,0.00011986,2]
[327081852,1715795441479,-500.0,0.00011986,2]
[327081853,1715795441488,-597.83984776,0.00011986,2]
[327081854,1715795441497,-1399.66,0.00011987,2]
[327081855,1715795441506,-500.0,0.00011987,2]
[327081856,1715795441515,-500.0,0.00011987,2]
[327081857,1715795441525,-500.0,0.00011987,2]
[327081858,1715795441534,-500.0,0.00011987,2]
[327081859,1715795441543,-562.05017261,0.00011987,2]
[327081860,1715795441552,-500.0,0.00011987,2]
[327081861,1715795441561,-500.0,0.00011987,2]
[327081862,1715795441569,-500.0,0.00011987,2]
[327081863,1715795441578,-500.0,0.00011987,2]
[327081864,1715795441587,-500.0,0.00011987,2]
[327081865,1715795441596,-500.0,0.00011987,2]
[327081866,1715795441605,-500.0,0.00011987,2]
[327081867,1715795441614,-500.0,0.00011987,2]
[327081868,1715795441622,-500.0,0.00011987,2]
[327081869,1715795441631,-500.0,0.00011987,2]
[327081870,1715795441640,-500.0,0.00011987,2]
[327081871,1715795441652,-500.0,0.00011987,2]
[327081872,1715795441662,-500.0,0.00011987,2]
[327081873,1715795441671,-500.0,0.00011987,2]
[327081874,1715795441680,-1101.6,0.00011987,2]
[327081875,1715795441691,-500.0,0.00011987,2]
[327081876,1715795441700,-455.41087651,0.00011987,2]
[327081877,1715795441709,-500.0,0.00011987,2]
[327081878,1715795441718,-2515.69,0.00011987,2]
[327081879,1715795441730,-2515.69,0.00011987,2]
[327081880,1715795441740,-2515.69,0.00011987,2]
[327081881,1715795441748,-2515.69,0.00011987,2]
[327081882,1715795441757,-2515.69,0.00011987,2]
[327081883,1715795441766,-500.0,0.00011987,2]
[327081884,1715795441775,-500.0,0.00011987,2]
[327081885,1715795441784,-500.0,0.00011987,2]
[327081886,1715795441793,-500.0,0.00011987,2]
[327081887,1715795441803,-177.18,0.00011987,2]
[327081888,1715795441812,-500.0,0.00011987,2]
[327081889,1715795441821,-500.0,0.00011987,2]
[327081890,1715795441831,-500.0,0.00011987,2]
[327081891,1715795441840,-500.0,0.00011987,2]
[327081892,1715795441849,-500.0,0.00011987,2]
[327081893,1715795441859,-500.0,0.00011987,2]
[327081894,1715795441868,-458.67,0.00011987,2]
[327081895,1715795441878,-500.0,0.00011987,2]
[327081896,1715795441887,-500.0,0.00011987,2]
[327081897,1715795441896,-630.14,0.00011987,2]
[327081898,1715795441906,-834.77,0.00011987,2]
[327081899,1715795441915,-834.77,0.00011987,2]
[327081900,1715795441925,-834.77,0.00011987,2]
[327081901,1715795441934,-834.77,0.00011987,2]
[327081902,1715795441943,-834.77,0.00011987,2]
[327081903,1715795441952,-473.47171462,0.00011987,2]
[327081904,1715795441962,-500.0,0.00011987,2]
[327081905,1715795441971,-500.0,0.00011987,2]
[327081906,1715795441981,-500.0,0.00011987,2]
[327081907,1715795441990,-500.0,0.00011987,2]
[327081908,1715795441999,-500.0,0.00011987,2]
[327081909,1715795442009,-500.0,0.00011987,2]
[327081910,1715795442019,-500.0,0.00011987,2]
[327081911,1715795442029,-500.0,0.00011987,2]
[327081912,1715795442039,-500.0,0.00011987,2]
[327081913,1715795442048,-500.0,0.00011987,2]
[327081914,1715795442058,-500.0,0.00011987,2]
[327081915,1715795442068,-500.0,0.00011987,2]
[327081916,1715795442078,-405.14704929,0.00011987,2]
[327081917,1715795442088,-500.0,0.00011987,2]
[327081918,1715795442098,-500.0,0.00011987,2]
[327081919,1715795442108,-500.0,0.00011987,2]
[327081920,1715795442117,-500.0,0.00011987,2]
[327081921,1715795442127,-500.0,0.00011987,2]
[327081922,1715795442138,-1648.77,0.00011987,2]
[327081923,1715795442147,-1648.77,0.00011987,2]
[327081924,1715795442157,-1648.77,0.00011987,2]
[327081925,1715795442166,-1648.77,0.00011987,2]
[327081926,1715795442176,-1693.2,0.00011987,2]
[327081927,1715795442187,-1693.2,0.00011987,2]
[327081928,1715795442197,-1693.2,0.00011987,2]
[327081929,1715795442207,-1693.2,0.00011987,2]
[327081930,1715795442216,-500.0,0.00011987,2]
[327081931,1715795442225,-500.0,0.00011987,2]
[327081932,1715795442235,-500.0,0.00011987,2]
[327081933,1715795442244,-500.0,0.00011987,2]
[327081934,1715795442254,-486.51470674,0.00011988,2]
[327081935,1715795442264,-188.07879447,0.00011988,2]
[327081936,1715795442273,-259351.16335449,0.00011988,2]
[327081937,1715795442283,-335.92803474,0.00011988,2]
[327081938,1715795442293,-3126.59029347,0.00011988,2]
[327081939,1715795442304,-4426.48350078,0.00011988,2]
[327081940,1715795442315,-71505.38990575,0.00011988,2]
[327081941,1715795442328,-13577.58281677,0.00011988,2]
[327081942,1715795442452,-4655.57000754,0.00011988,2]
[327081944,1715795442487,-625.25,0.000119,2]
[327081945,1715795442499,-1712.57125797,0.000119,2]
[327081954,1715795443175,-155.46,0.00011146,2]
[327081956,1715795443184,-493.24118642,0.0001177,2]
[327081958,1715795443199,-272.32466048,0.0001177,2]
[327081959,1715795443211,-493.68166636,0.0001177,2]
[327081960,1715795443223,-2740.75248674,0.0001177,2]
[327081961,1715795443234,-347.91331324,0.00011888,2]
[327081962,1715795443245,-152.08668676,0.00011888,2]
[327081963,1715795443255,-246.985208,0.00011889,2]
[327081964,1715795443264,-2933.90475492,0.00011889,2]
[327081965,1715795443332,-451.753598,0.0001187,2]
[327081966,1715795443342,-315.43256608,0.00011889,2]
[327081967,1715795443352,-451.753598,0.00011889,2]
[327081968,1715795443362,-246.985208,0.0001189,2]
[327081969,1715795443371,-3249.337321,0.0001189,2]
[327081970,1715795443381,-263.66003015,0.0001189,2]
[327081971,1715795443390,-451.753598,0.0001189,2]
[327081972,1715795443400,-246.985208,0.00011894,2]
[327081973,1715795443409,-3249.337321,0.00011894,2]
[327081974,1715795443419,-3249.337321,0.00011894,2]
[327081975,1715795443429,-246.985208,0.00011894,2]
[327081976,1715795443439,-451.753598,0.00011894,2]
[327081977,1715795443448,-500.0,0.00011899,2]
[327081978,1715795443458,-3249.337321,0.00011899,2]
[327081979,1715795443468,-246.985208,0.00011899,2]
[327081980,1715795443477,-3249.337321,0.00011899,2]
[327081981,1715795443488,-246.985208,0.00011899,2]
[327081982,1715795443497,-911.51606303,0.000119,2]
[327081983,1715795443506,-3249.337321,0.000119,2]
[327081984,1715795443516,-246.985208,0.000119,2]
[327081985,1715795443525,-246.985208,0.000119,2]
[327081986,1715795443535,-3249.337321,0.000119,2]
[327081987,1715795443544,-246.985208,0.0001191,2]
[327081988,1715795443554,-3249.337321,0.0001191,2]
[327081989,1715795443564,-246.985208,0.0001191,2]
[327081990,1715795443573,-3249.337321,0.0001191,2]
[327081991,1715795443583,-500.0,0.00011965,2]
[327081992,1715795443592,-299.747,0.00011966,2]
[327081993,1715795443601,-246.985208,0.00011966,2]
[327081994,1715795443611,-3249.337321,0.00011966,2]
[327081995,1715795443620,-3249.337321,0.00011966,2]
[327081996,1715795443630,-246.985199,0.00011966,2]
[327081997,1715795443641,-500.0,0.00011979,2]
[327081998,1715795443654,-500.0,0.00011979,2]
[327081999,1715795443664,-298.34397138,0.00011987,2]
[327082000,1715795443673,-598162.45260278,0.00011988,2]
[327082001,1715795443683,-968.61235952,0.00011988,2]
[327082002,1715795443693,-207.05672543,0.00011988,2]
[327082003,1715795443702,-2324.60160796,0.00011988,2]
[327082004,1715795443712,-3036.83733476,0.00011988,2]
[327082005,1715795443721,-155.88432097,0.00011988,2]
[327082006,1715795443733,-4274.39929361,0.00011988,2]
[327082007,1715795443743,-155.0,0.00011988,2]
[327082008,1715795443752,-1399.66,0.00011988,2]
[327082009,1715795443762,-500.0,0.00011988,2]
[327082010,1715795443772,-627.8,0.00011988,2]
[327082011,1715795443781,-1101.6,0.00011988,2]
[327082012,1715795443790,-500.0,0.00011988,2]
[327082013,1715795443799,-500.0,0.00011988,2]
[327082014,1715795443808,-500.0,0.00011988,2]
[327082015,1715795443818,-500.0,0.00011988,2]
[327082016,1715795443827,-1648.77,0.00011988,2]
[327082017,1715795443837,-1693.2,0.00011988,2]
[327082018,1715795443846,-500.0,0.00011988,2]
[327082019,1715795443855,-155.0,0.00011989,2]
[327082020,1715795443866,-1399.66,0.00011989,2]
[327082021,1715795443876,-1399.66,0.00011989,2]
[327082022,1715795443887,-204.64150175,0.00011989,2]
[327082023,1715795443896,-500.0,0.00011989,2]
[327082024,1715795443905,-565.40164173,0.00011989,2]
[327082025,1715795443915,-500.0,0.00011989,2]
[327082026,1715795443925,-500.0,0.00011989,2]
[327082027,1715795443935,-500.0,0.00011989,2]
[327082028,1715795443945,-500.0,0.00011989,2]
[327082029,1715795443954,-500.0,0.00011989,2]
[327082030,1715795443964,-500.0,0.00011989,2]
[327082031,1715795443974,-500.0,0.00011989,2]
[327082032,1715795443984,-500.0,0.00011989,2]
[327082033,1715795443994,-500.0,0.00011989,2]
[327082034,1715795444004,-500.0,0.00011989,2]
[327082035,1715795444013,-500.0,0.00011989,2]
[327082036,1715795444024,-1101.6,0.00011989,2]
[327082037,1715795444033,-1101.6,0.00011989,2]
[327082038,1715795444042,-525.5695877,0.00011989,2]
[327082039,1715795444051,-514.2327981,0.00011989,2]
[327082040,1715795444061,-502.8960085,0.00011989,2]
[327082041,1715795444070,-491.5592189,0.00011989,2]
[327082042,1715795444080,-480.2224293,0.00011989,2]
[327082043,1715795444089,-468.8856397,0.00011989,2]
[327082044,1715795444099,-500.0,0.00011989,2]
[327082045,1715795444108,-500.0,0.00011989,2]
[327082046,1715795444117,-5380.0119335,0.00011989,2]
[327082047,1715795444127,-5279.0982518,0.00011989,2]
[327082048,1715795444138,-5178.18457,0.00011989,2]
[327082049,1715795444147,-5077.2708883,0.00011989,2]
[327082050,1715795444156,-4976.3572066,0.00011989,2]
[327082051,1715795444166,-4875.4435249,0.00011989,2]
[327082052,1715795444175,-500.0,0.00011989,2]
[327082053,1715795444185,-500.0,0.00011989,2]
[327082054,1715795444194,-2515.69,0.00011989,2]
[327082055,1715795444204,-2515.69,0.00011989,2]
[327082056,1715795444213,-2515.69,0.00011989,2]
[327082057,1715795444222,-500.0,0.00011989,2]
[327082058,1715795444231,-500.0,0.00011989,2]
[327082059,1715795444241,-500.0,0.00011989,2]
[327082060,1715795444250,-2404.2175677,0.00011989,2]